Cogmind - Beta 16 @@@ ROGUE MODE // 2025.12.18 @ 21:33:20 Player: DietSnapple Result: Self-destructed Performance ------------- Evolutions (0) 0 Regions Visited (3) 600 Robots Destroyed (18) 90 Value Destroyed (599) 599 Prototype IDs (12) 240 Alien Tech Used (0) 0 Bonus (300) 300 TOTAL SCORE: 1829 Bonus ------- Registered with UFD 300 Cogmind --------- Core Integrity 67/250 Matter 270/300 Energy 100/100 System Corruption 3% Temperature Cool (97) Movement Core (700) Ox13 Location -8/Scraptown Parts ------- > --- POWER (1) -------- (None) > --- PROPULSION (2) --- (None) > --- UTILITY (2) ------ High-capacity Storage Unit > --- WEAPON (2) ------- (None) > --- INVENTORY (20) --- Wheel Light Armor Plating Hardened Light Armor Plating Assault Rifle CPS Tube (2) Peak State ------------ > --- POWER ------------ Light Ion Engine > --- PROPULSION ------- Wheel Wheel > --- UTILITY ---------- High-capacity Storage Unit Hardened Light Armor Plating > --- WEAPON ----------- Assault Cannon Slug Cannon > --- INVENTORY -------- Wheel Light Armor Plating Hardened Light Armor Plating Assault Rifle Assault Rifle SUBCON Basin [Rating: 31] Favorites ----------- Power Light Ion Engine Engine Light Ion Engine Propulsion Wheel Treads Light Treads Wheel Wheel Utility Hardened Light Armor Plating Device Seismic Detector Storage High-capacity Storage Unit Protection Hardened Light Armor Plating Weapon Slug Cannon Energy Gun Heavy EM Pulse Gun Ballistic Gun Assault Rifle Ballistic Cannon Slug Cannon Launcher Grenade Launcher Build | -11 -10 -10 -8 ------- Run | Yrd Mat Sub Scr Slots Evolved . | . . . . Power . | . . . . Propulsion . | . . . . Utility . | . . . . Weapon . | . . . . Parts Attached 28 | 7 11 9 1 Power 2 | 1 1 . . Engine 2 | 1 1 . . Core . | . . . . Reactor . | . . . . Propulsion 6 | 2 2 2 . Treads 2 | 2 . . . Leg . | . . . . Wheel 4 | . 2 2 . Hover . | . . . . Flight . | . . . . Utility 8 | 2 4 2 . Device 2 | 1 1 . . Storage 3 | 1 2 . . Processor . | . . . . Hackware . | . . . . Protection 3 | . 1 2 . Artifact . | . . . . Weapon 12 | 2 4 5 1 Energy Gun 3 | 1 2 . . Energy Cannon . | . . . . Ballistic Gun 4 | 1 2 1 . Ballistic Cannon 4 | . . 3 1 Launcher 1 | . . 1 . Special Weapon . | . . . . Impact Weapon . | . . . . Slashing Weapon . | . . . . Piercing Weapon . | . . . . Special Melee Weapon . | . . . . Unidentified Prototypes . | . . . . Parts Lost 14 | . 2 7 5 Power 2 | . . 1 1 Propulsion 4 | . 1 2 1 Utility 3 | . . 2 1 Weapon 5 | . 1 2 2 Highest Loss Streak 6 | . 2 6 5 To Critical Strikes . | . . . . Average Backups 7 | 3 10 8 4 Power . | . 1 . . Propulsion 1 | 2 2 1 1 Utility 2 | . 4 3 2 Weapon 2 | . 3 3 1 Tool/Special . | . . . . Unused Backups 12 | . 4 4 4 Power 1 | . 1 . . Propulsion 3 | . 2 . 1 Utility 3 | . . 1 2 Weapon 4 | . 1 3 . Tool/Special 1 | . . . 1 Average Slot Usage (%) 98 | . 96 98 99 Engine 13 | . 14 14 13 Treads 6 | . 20 . . Wheel 21 | . 6 27 27 Device 2 | . 8 . . Storage 14 | . 14 14 14 Protection 11 | . 5 13 14 Energy Gun 5 | . 19 . . Ballistic Gun 5 | . 5 11 . Ballistic Cannon 15 | . . 15 28 Peak Build Rating 31 | 7 12 29 31 Average Rating 20 | 4 9 21 28 On Entrance 11 | . 7 10 29 Avg Prop Armor Cover (%) . | . . . . Naked Turns . | . . . . Heaviest Build 60 | 12 55 58 60 Greatest Support 40 | 40 40 20 20 Greatest Overweight (x) 5 | . 2 4 5 Average Overweight (x) 1 | . . 2 2 Largest Inventory Capacity 20 | 8 20 20 20 Average Capacity 17 | 6 12 20 20 Most Carried 20 | 6 18 20 20 Average Carried 15 | 3 10 18 18 Final Capacity 20 | 8 20 20 20 Final Carried 20 | 6 18 20 5 Class Distribution -------------------- 100% | Mutant Dominant Class ---------------- Mutant | -10/Materials Mutant | -10/Subcaves Mutant | -8/Scraptown Resources | -11 -10 -10 -8 ----------- Run | Yrd Mat Sub Scr Matter Collected 776 | 179 181 145 271 Remotely . | . . . . Salvage Created 651 | 18 381 100 152 Parts 31 | 4 16 10 1 Haulers Intercepted . | . . . . Recyclers Shooed . | . . . . Parts Field Recycled . | . . . . Retrieved Matter . | . . . . Parts Self-Destructed 2 | . . 2 . Prevented . | . . . . Parts Restored . | . . . . Kills | -11 -10 -10 -8 ------- Run | Yrd Mat Sub Scr Combat Hostiles Destroyed 17 | . 9 4 4 Guns 11 | . 7 4 . Cannons 4 | . . . 4 AOE 2 | . 2 . . Classes Destroyed 5 | 1 1 1 2 Tunneler 1 | 1 . . . Grunt 9 | . 9 . . Subdweller 4 | . . 4 . Bolteater 3 | . . . 3 Guru 1 | . . . 1 Best Kill Streak 4 | 1 3 2 4 Combat Bots Only 4 | . 3 2 4 Max Kills in Single Turn 1 | 1 1 1 1 Gunslinging . | . . . . Exploded 1 | . 1 . . Melee . | . . . . Uniques/NPCs Destroyed . | . . . . Combat | -11 -10 -10 -8 -------- Run | Yrd Mat Sub Scr Hostile Shots Fired 136 | . 35 32 69 Missed 44 | . 14 11 19 Hits 92 | . 21 21 50 Melee 14 | . . . 14 Projectile 78 | . 21 21 36 Critical Strikes 4 | . . 1 3 Damage Taken 1861 | . 530 650 681 Core 183 | . 35 50 98 Absorbed by Shields . | . . . . Core Remaining (%) 100 | 100 . . . Volleys Fired 70 | 1 26 29 14 Largest 2 | 2 2 2 2 Hottest 90 | 60 90 70 77 Shots Fired 124 | 2 50 44 28 Gun 80 | 2 50 28 . Cannon 41 | . . 13 28 Launcher 3 | . . 3 . Special . | . . . . Kinetic 79 | 1 9 41 28 Thermal 10 | 1 9 . . Explosive 3 | . . 3 . Electromagnetic 32 | . 32 . . Robot Hit Streak 13 | 1 4 13 8 Robot Miss Streak 3 | 1 3 2 2 Penetration Max 1 | . . . 1 Secondary Targets 2 | . 1 1 . Max Gunslinging Chain 1 | . 1 1 . Shots Hit Robots 71 | 1 27 26 17 Core Hits 27 | 1 13 9 4 Critical Kills 1 | . . . 1 Critical Parts Destroyed 2 | . . 1 1 Critical Strikes 6 | . 1 2 3 Destroy 4 | . . 2 2 Blast 1 | . . . 1 Corrupt 1 | . 1 . . Melee Attacks . | . . . . Impact . | . . . . Slashing . | . . . . Piercing . | . . . . Sneak Attacks . | . . . . Combat Hostiles . | . . . . Follow-up Attacks . | . . . . Damage Inflicted 1661 | 15 575 563 508 Guns 699 | 15 387 297 . Cannons 508 | . . . 508 Explosions 454 | . 188 266 . Melee . | . . . . Ramming . | . . . . Kinetic 886 | 15 66 297 508 Thermal 159 | . 159 . . Explosive 364 | . 98 266 . Electromagnetic 252 | . 252 . . Impact . | . . . . Slashing . | . . . . Piercing . | . . . . Highest Corruption 3 | . . . 3 Average Corruption 1 | . . . 1 Corruption Purged . | . . . . Corruption Blocked . | . . . . Overload Shots . | . . . . Overflow Damage 126 | . 98 . 28 Projectiles 28 | . . . 28 Explosions 98 | . 98 . . Melee . | . . . . Knockbacks 13 | . . . 13 Impact . | . . . . Kinetic 10 | . . . 10 Secondary 3 | . . . 3 Self-Inflicted Damage 277 | . 277 . . Shots 4 | . 4 . . Rammed . | . . . . Targets Rammed . | . . . . Kicked . | . . . . Crushed . | . . . . Highest Temperature 277 | . 246 277 255 Average Temperature 97 | . 87 154 106 Received Heat Transfer 614 | . 141 461 12 Siege Activations . | . . . . Martial Activations . | . . . . Shielding Activations . | . . . . Robots Disrupted . | . . . . Combat Hostiles . | . . . . Robots Corrupted . | . . . . Combat Hostiles . | . . . . Parts Fried 1 | . 1 . . Impact Corruptions 1 | . . . 1 Robots Melted . | . . . . Combat Hostiles . | . . . . Parts Melted . | . . . . Heat Transferred 250 | . 250 . . Parts Sabotaged . | . . . . Parts Stolen 1 | . . . 1 Parts Stripped . | . . . . Power Chain Reactions 2 | . 2 . . Alert | -11 -10 -10 -8 ------- Run | Yrd Mat Sub Scr Maximum Alert Level . | . . . . Low Security (%) 100 | 100 100 . . Level 1 . | . . . . Level 2 . | . . . . Level 3 . | . . . . Level 4 . | . . . . Level 5 . | . . . . High Security . | . . . . Max Security . | . . . . Peak Influence 111 | 5 111 . . Initial . | . . . . Average 29 | . 32 . . Influence Increases 328 | 5 323 . . Destroy 0b10 Robot/C 180 | . 180 . . Destroy 0b10 Robot/NC 5 | 5 . . . Destroy Leader 40 | . 40 . . Disable Machine 45 | . 45 . . Destroy Structure 43 | . 43 . . Lose Combat Pursuer 15 | . 15 . . Influence Decreases 328 | 5 281 42 . Entered New Map 21 | . . 21 . Time Decay 277 | 5 261 11 . Lost Part 30 | . 20 10 . Squads Dispatched 3 | . 3 . . Investigation 1 | . 1 . . Extermination . | . . . . Reinforcement 2 | . 2 . . Assault . | . . . . Garrison . | . . . . Intercept . | . . . . Searches Triggered . | . . . . Construction Impeded . | . . . . Haulers Reinforced . | . . . . Active Scanning Responses . | . . . . Cargo Convoy Interrupts . | . . . . Stealth | -11 -10 -10 -8 --------- Run | Yrd Mat Sub Scr Distress Signals 1 | . 1 . . Communications Jammed . | . . . . Distress Signals . | . . . . Times Spotted 46 | . 21 4 21 Peak Tracking Total 26 | . 4 2 26 Tactical Retreats 1 | . 1 . . Traps | -11 -10 -10 -8 ------- Run | Yrd Mat Sub Scr Traps Triggered 3 | . 1 2 . Indirectly . | . . . . Trap Hack Attempts . | . . . . Triggered . | . . . . Disarmed . | . . . . Reprogrammed . | . . . . Reused . | . . . . Traps Extracted . | . . . . Installed . | . . . . Triggered . | . . . . Machines | -11 -10 -10 -8 ---------- Run | Yrd Mat Sub Scr Machines Disabled 6 | . 3 . 3 Max in Single Turn 2 | . 2 . 1 Machines Repaired . | . . . . Machines Dismantled . | . . . . Machines Sabotaged . | . . . . Overloaded Fab Kills . | . . . . Hacking | -11 -10 -10 -8 --------- Run | Yrd Mat Sub Scr Machines Accessed 4 | . . 2 2 Terminals . | . . . . Fabricators . | . . . . Repair Stations . | . . . . Recycling Units . | . . . . Scanalyzers . | . . . . Garrison Access . | . . . . Total Hacks 8 | . . 3 5 Successful 8 | . . 3 5 Failed . | . . . . Catastrophic . | . . . . Database Lockouts . | . . . . Manual . | . . . . Terminals . | . . . . Fabricators . | . . . . Repair Stations . | . . . . Recycling Units . | . . . . Scanalyzers . | . . . . Garrison Access . | . . . . Terminal Hacks 8 | . . 3 5 Record 5 | . . 1 4 Open Door 1 | . . 1 . Proto ID Catalog 1 | . . . 1 Release Object 1 | . . 1 . Fabricator Hacks . | . . . . Repair Station Hacks . | . . . . Recycling Unit Hacks . | . . . . Scanalyzer . | . . . . Garrison Access Hacks . | . . . . Unauthorized Hacks . | . . . . Terminals . | . . . . Fabricators . | . . . . Repair Stations . | . . . . Recycling Units . | . . . . Scanalyzers . | . . . . Garrison Access . | . . . . Data Cores Recovered . | . . . . Used . | . . . . Hacking Detections . | . . . . Full Trace Events . | . . . . Feedback Events . | . . . . Feedback Blocked . | . . . . Robot Schematics Acquired . | . . . . Robots Built . | . . . . Authchips . | . . . . Time . | . . . . Total Robot Build Rating . | . . . . Part Schematics Acquired . | . . . . Parts Built . | . . . . Authchips . | . . . . Time . | . . . . Total Part Build Rating . | . . . . Part Studies Acquired . | . . . . Parts Repaired . | . . . . Time . | . . . . Parts Recycled . | . . . . Recycled Matter . | . . . . Retrieved Matter . | . . . . Retrieved Components . | . . . . Parts Scanalyzed . | . . . . Part Schematics Acquired . | . . . . Parts Damaged . | . . . . Bothacking | -11 -10 -10 -8 ------------ Run | Yrd Mat Sub Scr Used RIF Installer . | . . . . Robots Hacked . | . . . . Non-combat . | . . . . Combat . | . . . . Robot Hacks Applied . | . . . . Relay Couplers Released . | . . . . Fabnet Peak Effective % . | . . . . Robots Rewired . | . . . . Allies Hacked . | . . . . Hacks Repelled . | . . . . Allies | -11 -10 -10 -8 -------- Run | Yrd Mat Sub Scr Total Allies . | . . . . Largest Group . | . . . . Highest-Rated Group . | . . . . Highest-Rated Ally . | . . . . Total Orders . | . . . . Ally Attacks . | . . . . Total Damage . | . . . . Kills . | . . . . Allies Corrupted . | . . . . Allies Melted . | . . . . Intel | -11 -10 -10 -8 ------- Run | Yrd Mat Sub Scr Active Infowar (turns) 620 | 11 609 . . Seismic 620 | 11 609 . . Robot Analysis Total . | . . . . Derelict Logs Recovered 1 | . . 1 . Drone Launches . | . . . . Drone Recoveries . | . . . . Exploration | -11 -10 -10 -8 ------------- Run | Yrd Mat Sub Scr Turns Passed 3462 | 111 982 1083 1286 Spaces Moved 2612 | 65 553 883 1111 Core 10 | 10 . . . Treads 416 | 55 361 . . Legs . | . . . . Wheels 2186 | . 192 883 1111 Hover . | . . . . Flight . | . . . . Fastest Speed 50 | 50 95 110 110 Average Speed 117 | 143 140 110 110 Slowest Speed 240 | 160 240 140 155 Overloaded Moves . | . . . . Propulsion Burnouts . | . . . . Robots Hopped . | . . . . Potential Cave-ins . | . . . . Cave-ins Triggered . | . . . . Exploration Rate (%) 51 | 4 81 39 82 Regions Visited 3 Branch Regions 2 Pre-discovered Areas 2 | . . 2 . Known Exits Taken . | . . . . Unknown Exits Taken 3 | 1 1 1 . Scrap Searched 6 | . . . 6 Spaces Dug . | . . . . Terrain Destroyed 66 | . 41 20 5 Melee . | . . . . Projectile 6 | . . 1 5 AOE 60 | . 41 19 . Terrain Rammed . | . . . . Walls Destroyed . | . . . . Machines Disabled . | . . . . Actions | -11 -10 -10 -8 --------- Run | Yrd Mat Sub Scr Total 2873 | 78 710 946 1139 Wait 116 | . 94 15 7 Move 2609 | 64 552 882 1111 Hop . | . . . . Pick Up 27 | 6 18 1 2 Fast Attach 10 | 7 3 . . Attach 8 | . 1 7 . Detach . | . . . . Swap 13 | . 7 5 1 Drop 19 | . 9 7 3 Fire 70 | 1 26 29 14 Melee . | . . . . Ram . | . . . . Kick . | . . . . Crush . | . . . . Escape Stasis . | . . . . Rewire . | . . . . Trap . | . . . . Miscellaneous 1 | . . . 1 Route ------- -11/Scrapyard -10/Materials (discovered 5 exits: [*Mat x3] / [*Min] / *Sub) -10/Subcaves -8/Scraptown (discovered 1 exit: [*Fac]) History --------- Turn | Location | Event 21 | -11/Scrapyard | Discovered new exit (range 13) 112 | -11/Scrapyard | Entered Materials 156 | -10/Materials | Discovered new exit (range 14) 312 | -10/Materials | Build established: Mutant 389 | -10/Materials | Discovered new exit (range 10) 678 | -10/Materials | Discovered new exit (range 16) 963 | -10/Materials | Discovered new exit (range 3) 1083 | -10/Materials | Discovered new exit (range 5) 1094 | -10/Materials | Entered Subcaves 1095 | -10/Subcaves | Approached by a straggling Scientist 1139 | -10/Subcaves | Learned location of Zion (-6) 1139 | -10/Subcaves | Met a Zionite searching for "candidates" 1225 | -10/Subcaves | Learned location of Storage (-8) 1398 | -10/Subcaves | A swath of the cavern ceiling suddenly collapsed 1398 | -10/Subcaves | Lost 6 parts (1p2n1u2w) 1450 | -10/Subcaves | Found SUBCON Basin 1521 | -10/Subcaves | Shifting Twisted Machinery released Shrapnel Trap 1527 | -10/Subcaves | Shifting Twisted Machinery released Sub. Power Source 1537 | -10/Subcaves | Shifting Twisted Machinery released Sub. Machine Gun 1901 | -10/Subcaves | A swath of the cavern ceiling suddenly collapsed 2131 | -10/Subcaves | Scientist uncovered a shortcut to Scraptown 2177 | -10/Subcaves | Entered Scraptown 2430 | -8/Scraptown | Discovered new exit (range 13) 2527 | -8/Scraptown | Visited Bundlers 2594 | -8/Scraptown | Visited Assassins FH 2606 | -8/Scraptown | Heard Great Nut preacher, LISTEN AND RECITE! 2614 | -8/Scraptown | Visited SPCMW 2795 | -8/Scraptown | Visited UFD Registry 2795 | -8/Scraptown | Registered with UFD as "Deathtank" 2834 | -8/Scraptown | Visited Scrapoid Research Area 2873 | -8/Scraptown | Visited Junk Cannon Lab 2900 | -8/Scraptown | Visited Observation Area 2972 | -8/Scraptown | Visited Science Guys 3019 | -8/Scraptown | Visited Infowarlord's Domain 3051 | -8/Scraptown | Visited Abandonware Association 3080 | -8/Scraptown | Learned abandonware demo "TRNCOAT.EXE" 3254 | -8/Scraptown | Visited Chapter 10 3361 | -8/Scraptown | Released subatomizers from SUBCON Basin 3378 | -8/Scraptown | Attacked by Scraptown defenders 3452 | -8/Scraptown | Core integrity fell below 50% 3463 | -8/Scraptown | Self-destructed Last Messages --------------- 03451_ Penetrated by Slug. 03451_ Slug penetrates Machine. 03454_ Penetrated by Slug. 03454_ NR-YEG(p) knocked back. 03456_ Slug penetrates Wall. 03457_ Destroyed Imp. Hover Unit. 03457_ NR-YEG(p) knocked back. 03458_ Penetrated by Slug. 03458_ Slug penetrates Machine. 03460_ Destroyed Imp. Heat Sink. 03460_ NR-YEG(p) knocked back. 03460_ Penetrated by Slug. 03460_ Assault Cannon destroyed. 03460_ Penetrated by Slug. 03460_ Wheel destroyed. 03460_ Slug penetrates Wall. 03461_ 1K-AF4(E): "We are one!" 03462_ Hrd. Light Armor Plating destroyed. 03463_ Penetrated by Slug. 03463_ Slug Cannon destroyed. Map ----- +----------------------------------------------------+ | ?????????????????????????????????????????????????? | | ?????????????????????????????????????????????????? | | ?????????????????????????????????????????????????? | | ?????????????????????????????????????????????????? | | ?????????????????????????????????????????????????? | | ?????????????????????????????????????????????????? | | ?????????????????????????????????????????????????? | | ??????????????????????????????##?????????????????? | | ?????????????????????????????# ?????????????????? | | ????????????????????????????? ?????????????????? | | ????????????????????????????? ?????????????????? | | ????????????????????????????? ?????????????????? | | ????????????????????????????? ?????????????????? | | ?????????????????????????????# #????????????????? | | ####???????################### #############????? | | #???????#""""""#"""""""""## #"""""""""""#????? | | " #???????#""""""#" "## #""" X """""#????? | | """#???????#" ""#" """"" "## #"""" """#????? | | """#???????#" ""#" "???" "#;EE#""|" "#????? | | """#???????#" ""#" "???" "#;E #"""" """#????? | | " #???????#" ""#" "???" ;; #"" """"#????? | | #???????#" "#" "???" ;# # ""#????? | | ""#??##"###"| """#" """"" ## # " "" ""#????? | | "#??# #" ## #&" "" ""#????? | | "#??# # % "## #" #????? | | #??# # %@ ## # "#????? | | ###??######!"#########; %#### ## ##########????? | | ###########%="########; %;### ## ##???###??????? | | """""""""""=" """""""p3jE"""" "" "#??? ???????? | | % %%% % E "#?? ????????? | | % EE "#?? """ ""???? | | % j "#?" ????? | | "##" " """???? | | pg " "???? | | """""""""" """"""" """""""" "##" "???? | | """""""""""""""""""""""""""" "#?" """ "???? | | ""###### ################""g "#?? ??????? | | ""#??? ??????????????#"" "#??#####?????? | | ""#??? ?????????????#"" "#??########??? | | ""#? "" ""?????????????#"" "#?? !!!!! #??? | | ""# "" ????????????###"" "#? #??? | | ""# " ????????###### #"" "## #??? | | "" "???????? #??? | | "" "???????? "## !!!!! #??? | | ""# " ????????###### #"" "#?#########??? | | ""# "" ????????????###"" "#????????????? | | ""#? "" ""?????????????#"" "#????????????? | | ""#???? ?????????????#"" "#????????????? | | ""#???? ??????????????#"" "############?? | | ""###### ################"" "## "#?? | +----------------------------------------------------+ Best States ------------- Heat Dissipation 25 Energy Generation 10 Energy Capacity 250 Matter Stores 300 Matter Capacity 300 Sight Range 16 Terrain Scan Density 10 Armor Coverage 150 Evasion (%) 41 Recoil Reduction 2 Item Schematics ----------------- None Robot Schematics ------------------ None Fabricated ------------ Nothing Repaired ---------- Nothing Studied --------- None Alien Tech Used ----------------- None Achievements -------------- Nice Directions, Buddy Challenges ------------ None Game ------ Seed ShadeSurveybotCoupler Manual? 0 Play Time 00:18:59 Cumulative 52.9 hours Start 2025.12.13 @ 15:02:32 End 2025.12.18 @ 21:33:20 Sessions 2 Manual Loads 0 Difficulty Rogue Special Mode None Game No. 115 Rogue 108 Adventurer 7 Explorer 0 Win Type - Total 1 Types 1/0/0/0/0/0/0/0/0/0 Lore% 28 Gallery% 38 Achievement% 27 Wizard Run 0 Options --------- Layout 0 ASCII 0 Keyboard 0 Movement Vi Keybinds 0 Fullscreen 1 Font 18/SmallcapsGlow Map View 76x50 Zoom Use 0% Tactical HUD 1 Map Filters NONE Filters NONE Steam 1 RUN: b3b4f158-bcfa-411e-85b8-8e3bc37e13aa